[Event "GrandPrix_29.05"]
[Site "Chess.com"]
[Date "2020.05.29"]
[Round "2"]
[White "Gabrielian_Artur"]
[Black "Logman74"]
[Result "1-0"]
[WhiteElo "2609"]
[BlackElo "2212"]
[TimeControl "600+2"]
[EndTime "9:55:08 PDT"]
[Termination "Gabrielian_Artur won on time"]

1. e4 {[%clk 0:10:01.9]} 1... c5 {[%clk 0:10:00]} 2. Nc3 {[%clk 0:10:02.4]} 2...
Nc6 {[%clk 0:09:59.7]} 3. Bb5 {[%clk 0:10:02.5]} 3... g6 {[%clk 0:09:54]} 4.
Bxc6 {[%clk 0:10:02.6]} 4... dxc6 {[%clk 0:09:54.8]} 5. d3 {[%clk 0:10:02.4]}
5... Bg7 {[%clk 0:09:55.6]} 6. Be3 {[%clk 0:10:02.1]} 6... b6 {[%clk 0:09:55.7]}
7. Qd2 {[%clk 0:09:50]} 7... e5 {[%clk 0:09:55.6]} 8. Nge2 {[%clk 0:08:36.6]}
8... Nf6 {[%clk 0:09:50.2]} 9. Bh6 {[%clk 0:08:33]} 9... O-O {[%clk 0:09:27.4]}
10. Bxg7 {[%clk 0:08:28.4]} 10... Kxg7 {[%clk 0:09:26.7]} 11. h4 {[%clk
0:08:19.5]} 11... h5 {[%clk 0:09:25.4]} 12. O-O-O {[%clk 0:08:13.3]} 12... b5
{[%clk 0:09:09.6]} 13. f3 {[%clk 0:07:32.2]} 13... Be6 {[%clk 0:08:44.2]} 14.
Kb1 {[%clk 0:07:32]} 14... Qa5 {[%clk 0:08:31.2]} 15. b3 {[%clk 0:07:13.5]}
15... c4 {[%clk 0:08:11.7]} 16. d4 {[%clk 0:07:11.3]} 16... b4 {[%clk
0:08:08.7]} 17. Na4 {[%clk 0:07:11.9]} 17... c3 {[%clk 0:07:30.3]} 18. Qg5
{[%clk 0:06:58.9]} 18... Nd7 {[%clk 0:07:27.6]} 19. Nf4 {[%clk 0:06:47.8]} 19...
Qd8 {[%clk 0:06:12.2]} 20. Nxe6+ {[%clk 0:06:28.4]} 20... fxe6 {[%clk
0:06:10.8]} 21. dxe5 {[%clk 0:06:27.6]} 21... Qc7 {[%clk 0:05:26.2]} 22. Rd6
{[%clk 0:06:23.7]} 22... Rae8 {[%clk 0:05:18.6]} 23. Rhd1 {[%clk 0:06:08.1]}
23... Rf7 {[%clk 0:05:15.5]} 24. f4 {[%clk 0:05:57.9]} 24... Nf8 {[%clk
0:03:49.8]} 25. Qg3 {[%clk 0:05:20.7]} 25... c5 {[%clk 0:03:33.2]} 26. Qe3
{[%clk 0:05:16.5]} 26... c4 {[%clk 0:03:30.1]} 27. g3 {[%clk 0:05:17.2]} 27...
cxb3 {[%clk 0:03:29.4]} 28. axb3 {[%clk 0:05:17.5]} 28... Rb8 {[%clk 0:03:11.7]}
29. Qc5 {[%clk 0:04:52.9]} 29... Qb7 {[%clk 0:03:08]} 30. Qc6 {[%clk 0:04:51.7]}
30... Qe7 {[%clk 0:03:00.7]} 31. Ka2 {[%clk 0:04:37.3]} 31... a5 {[%clk
0:02:57.2]} 32. R1d4 {[%clk 0:04:31.8]} 32... Rb7 {[%clk 0:02:51.4]} 33. Nc5
{[%clk 0:03:47.9]} 33... Rc7 {[%clk 0:02:39.9]} 34. Qb6 {[%clk 0:03:48.8]} 34...
a4 {[%clk 0:02:11]} 35. Nxe6+ {[%clk 0:03:20.4]} 35... Nxe6 {[%clk 0:02:00]} 36.
Rxe6 {[%clk 0:03:21.4]} 36... axb3+ {[%clk 0:01:59.2]} 37. Kxb3 {[%clk
0:03:22.5]} 37... Qf8 {[%clk 0:01:52.3]} 38. Rxg6+ {[%clk 0:03:22.9]} 38... Kh7
{[%clk 0:01:52.1]} 39. Rdd6 {[%clk 0:03:11.6]} 39... Rg7 {[%clk 0:00:20.4]} 40.
Rh6+ {[%clk 0:03:03.6]} 40... Kg8 {[%clk 0:00:20.2]} 41. Rdg6 {[%clk 0:02:57.7]}
41... Qf7+ {[%clk 0:00:07.5]} 42. Qe6 {[%clk 0:02:48.9]} 42... Ra7 {[%clk
0:00:03.2]} 43. Qxf7+ {[%clk 0:02:44.7]} 43... Kxf7 {[%clk 0:00:02.2]} 44. Rxg7+
{[%clk 0:02:40.4]} 44... Kxg7 {[%clk 0:00:03.6]} 45. Rxh5 {[%clk 0:02:37.6]}
45... Kg6 {[%clk 0:00:04.4]} 46. Rg5+ {[%clk 0:02:38.3]} 46... Kh6 {[%clk
0:00:05.6]} 47. Kxb4 {[%clk 0:02:39.1]} 47... Rc7 {[%clk 0:00:05.5]} 48. e6
{[%clk 0:02:39.5]} 1-0

[Event "GrandPrix_29.05"]
[Site "Chess.com"]
[Date "2020.05.29"]
[Round "2"]
[White "Tashik"]
[Black "AlexPapasimakopoulos"]
[Result "0-1"]
[WhiteElo "1933"]
[BlackElo "1742"]
[TimeControl "600+2"]
[EndTime "9:55:08 PDT"]
[Termination "AlexPapasimakopoulos won by resignation"]

1. c4 {[%clk 0:10:01.8]} 1... Nf6 {[%clk 0:09:56.8]} 2. Nc3 {[%clk 0:10:02.2]}
2... c5 {[%clk 0:09:57.8]} 3. Nf3 {[%clk 0:10:02.5]} 3... Nc6 {[%clk 0:09:57.5]}
4. d4 {[%clk 0:10:01.6]} 4... cxd4 {[%clk 0:09:57.7]} 5. Nxd4 {[%clk 0:10:03.5]}
5... g6 {[%clk 0:09:57.7]} 6. e4 {[%clk 0:10:03.5]} 6... Bg7 {[%clk 0:09:58.7]}
7. Be3 {[%clk 0:10:05]} 7... d6 {[%clk 0:09:57.8]} 8. Be2 {[%clk 0:10:05.2]}
8... O-O {[%clk 0:09:58.2]} 9. O-O {[%clk 0:10:06.3]} 9... Bd7 {[%clk
0:09:51.5]} 10. h3 {[%clk 0:10:06.4]} 10... a6 {[%clk 0:09:43.1]} 11. Nf3 {[%clk
0:10:02.5]} 11... Rb8 {[%clk 0:09:41.8]} 12. Rc1 {[%clk 0:09:56.6]} 12... Qa5
{[%clk 0:09:37.4]} 13. a3 {[%clk 0:09:47.8]} 13... b5 {[%clk 0:09:07.1]} 14. c5
{[%clk 0:08:22.9]} 14... b4 {[%clk 0:08:26.2]} 15. axb4 {[%clk 0:08:13.6]} 15...
Qxb4 {[%clk 0:08:27.1]} 16. cxd6 {[%clk 0:08:05.4]} 16... exd6 {[%clk
0:08:25.1]} 17. Bf4 {[%clk 0:07:15.1]} 17... Ne8 {[%clk 0:08:24.7]} 18. Nd5
{[%clk 0:06:31.9]} 18... Qb7 {[%clk 0:08:20.4]} 19. b3 {[%clk 0:05:10.9]} 19...
Kh8 {[%clk 0:08:06.3]} 20. Bc4 {[%clk 0:04:55.6]} 20... Na5 {[%clk 0:07:53.1]}
21. Rb1 {[%clk 0:02:04.3]} 21... f5 {[%clk 0:07:42.6]} 22. e5 {[%clk 0:01:53.3]}
22... dxe5 {[%clk 0:06:55.7]} 23. Nxe5 {[%clk 0:01:45.9]} 23... Be6 {[%clk
0:06:48.6]} 24. Ne3 {[%clk 0:01:06.7]} 24... Nxc4 {[%clk 0:06:44]} 25. bxc4
{[%clk 0:00:51.3]} 25... Qxb1 {[%clk 0:06:45.9]} 26. Qxb1 {[%clk 0:00:52.3]}
26... Rxb1 {[%clk 0:06:47]} 27. Rxb1 {[%clk 0:00:54.2]} 27... g5 {[%clk
0:06:45.7]} 28. Bh2 {[%clk 0:00:40]} 28... f4 {[%clk 0:06:46.2]} 29. N3g4 {[%clk
0:00:41.5]} 29... h5 {[%clk 0:06:46.6]} 30. Ng6+ {[%clk 0:00:42.2]} 30... Kg8
{[%clk 0:06:43.3]} 31. Nxf8 {[%clk 0:00:41.9]} 31... Kxf8 {[%clk 0:06:41.8]} 32.
Rb6 {[%clk 0:00:38.4]} 32... Ke7 {[%clk 0:06:04.1]} 33. h4 {[%clk 0:00:18.7]}
33... hxg4 {[%clk 0:05:46.2]} 34. hxg5 {[%clk 0:00:19.9]} 34... Bxc4 {[%clk
0:05:04.8]} 35. Bxf4 {[%clk 0:00:19.4]} 35... Bb5 {[%clk 0:05:00.8]} 36. Rb7+
{[%clk 0:00:20.1]} 36... Ke6 {[%clk 0:05:00.1]} 37. Rb8 {[%clk 0:00:17.5]} 37...
Kf5 {[%clk 0:04:56.3]} 38. Be3 {[%clk 0:00:16.2]} 38... Be5 {[%clk 0:04:52.8]}
39. Rb6 {[%clk 0:00:12.2]} 39... Nc7 {[%clk 0:04:49.4]} 40. Rb7 {[%clk 0:00:12]}
40... Ne6 {[%clk 0:04:41]} 41. g3 {[%clk 0:00:11]} 41... Nxg5 {[%clk 0:04:39.4]}
42. Rb6 {[%clk 0:00:05.7]} 42... Nf3+ {[%clk 0:04:36.6]} 43. Kg2 {[%clk
0:00:06.9]} 43... Bd4 {[%clk 0:04:33.5]} 44. Bxd4 {[%clk 0:00:06.3]} 44... Nxd4
{[%clk 0:04:35.4]} 45. Rd6 {[%clk 0:00:07.3]} 45... Ke5 {[%clk 0:04:34.4]} 46.
Rd8 {[%clk 0:00:08.6]} 46... Be2 {[%clk 0:04:31.9]} 47. f4+ {[%clk 0:00:08.6]}
47... gxf3+ {[%clk 0:04:29.9]} 48. Kf2 {[%clk 0:00:10.1]} 48... Nf5 {[%clk
0:04:20.3]} 49. g4 {[%clk 0:00:11]} 49... Nh6 {[%clk 0:04:20.3]} 50. g5 {[%clk
0:00:09.7]} 50... Ng4+ {[%clk 0:04:21.1]} 51. Kg3 {[%clk 0:00:10]} 51... f2
{[%clk 0:03:44.7]} 52. Rf8 {[%clk 0:00:11]} 52... f1=Q {[%clk 0:03:32.6]} 53.
Rxf1 {[%clk 0:00:11.7]} 53... Bxf1 {[%clk 0:03:34.5]} 54. Kxg4 {[%clk
0:00:13.6]} 54... Ke4 {[%clk 0:03:32.7]} 55. g6 {[%clk 0:00:14.2]} 55... Bc4
{[%clk 0:03:33.8]} 56. g7 {[%clk 0:00:15.1]} 56... a5 {[%clk 0:03:31.7]} 57. Kg3
{[%clk 0:00:15.3]} 57... a4 {[%clk 0:03:25.2]} 58. Kf2 {[%clk 0:00:16.4]} 58...
a3 {[%clk 0:03:24.9]} 59. g8=Q {[%clk 0:00:17.2]} 59... Bxg8 {[%clk 0:03:24.8]}
0-1

[Event "GrandPrix_29.05"]
[Site "Chess.com"]
[Date "2020.05.29"]
[Round "2"]
[White "Valeriy_Neverov"]
[Black "DarkAlekhine"]
[Result "1-0"]
[WhiteElo "2256"]
[BlackElo "2159"]
[TimeControl "600+2"]
[EndTime "9:55:09 PDT"]
[Termination "Valeriy_Neverov won on time"]

1. d4 {[%clk 0:09:50.4]} 1... Nf6 {[%clk 0:09:59]} 2. c4 {[%clk 0:09:50.3]} 2...
g6 {[%clk 0:09:59.7]} 3. Nc3 {[%clk 0:09:50.1]} 3... Bg7 {[%clk 0:10:00.8]} 4.
e4 {[%clk 0:09:50.2]} 4... d6 {[%clk 0:10:01.9]} 5. f3 {[%clk 0:09:47.4]} 5...
O-O {[%clk 0:10:01.5]} 6. Bg5 {[%clk 0:09:41]} 6... Nc6 {[%clk 0:09:47.3]} 7.
Nge2 {[%clk 0:09:12.9]} 7... a6 {[%clk 0:09:34]} 8. Qd2 {[%clk 0:09:04.5]} 8...
Rb8 {[%clk 0:09:33.4]} 9. d5 {[%clk 0:08:07.5]} 9... Ne5 {[%clk 0:09:16.9]} 10.
Ng3 {[%clk 0:08:07.6]} 10... b5 {[%clk 0:09:16.5]} 11. cxb5 {[%clk 0:08:02.3]}
11... axb5 {[%clk 0:09:06.5]} 12. Bxb5 {[%clk 0:07:46.8]} 12... Bd7 {[%clk
0:08:58.9]} 13. a4 {[%clk 0:07:33.4]} 13... c6 {[%clk 0:08:13.7]} 14. dxc6
{[%clk 0:07:31.5]} 14... Bxc6 {[%clk 0:08:14.6]} 15. O-O {[%clk 0:07:16.3]}
15... Bxb5 {[%clk 0:08:13.7]} 16. axb5 {[%clk 0:06:59.4]} 16... Nfd7 {[%clk
0:07:19.5]} 17. Nd5 {[%clk 0:04:51.9]} 17... f6 {[%clk 0:06:54.4]} 18. Be3
{[%clk 0:04:19.3]} 18... Rxb5 {[%clk 0:06:44]} 19. Rfc1 {[%clk 0:04:13.2]} 19...
Rb3 {[%clk 0:04:37.1]} 20. Ra3 {[%clk 0:03:47.8]} 20... Rxa3 {[%clk 0:04:35.4]}
21. bxa3 {[%clk 0:03:48.2]} 21... e6 {[%clk 0:04:28]} 22. Nf4 {[%clk 0:03:44.4]}
22... Qe7 {[%clk 0:04:27.5]} 23. Nge2 {[%clk 0:03:43.6]} 23... g5 {[%clk
0:03:45.8]} 24. Nd3 {[%clk 0:03:35.8]} 24... Nxd3 {[%clk 0:03:44.1]} 25. Qxd3
{[%clk 0:03:36.2]} 25... Ne5 {[%clk 0:03:45.2]} 26. Qb3 {[%clk 0:03:34.3]} 26...
Kh8 {[%clk 0:03:38.4]} 27. Nd4 {[%clk 0:03:32.9]} 27... d5 {[%clk 0:03:02.6]}
28. exd5 {[%clk 0:03:04.5]} 28... exd5 {[%clk 0:03:02.1]} 29. Qxd5 {[%clk
0:02:26.1]} 29... Qxa3 {[%clk 0:02:38.4]} 30. Nf5 {[%clk 0:02:17.4]} 30... Qd3
{[%clk 0:00:45.6]} 31. Qxd3 {[%clk 0:02:05.6]} 31... Nxd3 {[%clk 0:00:47.5]} 32.
Rc7 {[%clk 0:02:05.3]} 32... Ra8 {[%clk 0:00:42.3]} 33. h4 {[%clk 0:01:56.8]}
33... Bf8 {[%clk 0:00:36.8]} 34. Bd4 {[%clk 0:01:56.4]} 34... Ra6 {[%clk
0:00:25.1]} 35. hxg5 {[%clk 0:01:53.9]} 35... Kg8 {[%clk 0:00:02.3]} 36. gxf6
{[%clk 0:01:40.7]} 1-0

[Event "GrandPrix_29.05"]
[Site "Chess.com"]
[Date "2020.05.29"]
[Round "2"]
[White "BairaKovanova"]
[Black "MartinCerveny"]
[Result "1-0"]
[WhiteElo "2071"]
[BlackElo "2109"]
[TimeControl "600+2"]
[EndTime "9:55:11 PDT"]
[Termination "BairaKovanova won by resignation"]

1. e4 {[%clk 0:10:01.9]} 1... c5 {[%clk 0:10:00.8]} 2. Nf3 {[%clk 0:09:46.3]}
2... d6 {[%clk 0:10:00.3]} 3. g3 {[%clk 0:09:29.4]} 3... Nf6 {[%clk 0:09:53.3]}
4. d3 {[%clk 0:08:57.1]} 4... g6 {[%clk 0:09:50.9]} 5. Bg2 {[%clk 0:08:57.6]}
5... Bg7 {[%clk 0:09:51.8]} 6. O-O {[%clk 0:08:58]} 6... O-O {[%clk 0:09:52.1]}
7. Nc3 {[%clk 0:08:57.9]} 7... Nc6 {[%clk 0:09:51.4]} 8. h3 {[%clk 0:08:55.4]}
8... Rb8 {[%clk 0:09:50.9]} 9. Be3 {[%clk 0:08:52.6]} 9... b5 {[%clk 0:09:46.6]}
10. Qd2 {[%clk 0:08:46.9]} 10... b4 {[%clk 0:09:32.5]} 11. Nd1 {[%clk
0:08:43.8]} 11... a5 {[%clk 0:09:30.9]} 12. Bh6 {[%clk 0:08:20.5]} 12... e6
{[%clk 0:09:18]} 13. Nh4 {[%clk 0:08:13.1]} 13... d5 {[%clk 0:08:36.9]} 14. Bxg7
{[%clk 0:07:23.3]} 14... Kxg7 {[%clk 0:08:36.4]} 15. exd5 {[%clk 0:07:16.4]}
15... exd5 {[%clk 0:08:38.3]} 16. Ne3 {[%clk 0:07:04.7]} 16... Ne7 {[%clk
0:07:58.6]} 17. f4 {[%clk 0:06:34]} 17... d4 {[%clk 0:07:41.5]} 18. Nc4 {[%clk
0:06:32.1]} 18... Be6 {[%clk 0:07:15.3]} 19. Rae1 {[%clk 0:06:18.1]} 19... h6
{[%clk 0:06:46]} 20. Re5 {[%clk 0:05:18.7]} 20... Rc8 {[%clk 0:06:45.2]} 21.
Rfe1 {[%clk 0:05:18.6]} 21... Nf5 {[%clk 0:06:13.4]} 22. Nxf5+ {[%clk
0:04:47.5]} 22... Bxf5 {[%clk 0:06:15.3]} 23. g4 {[%clk 0:04:40.2]} 23... Be6
{[%clk 0:06:16.2]} 24. Qf2 {[%clk 0:04:28.6]} 24... Bxc4 {[%clk 0:06:12.2]} 25.
dxc4 {[%clk 0:04:28.9]} 25... Qd6 {[%clk 0:06:11.1]} 26. b3 {[%clk 0:03:38]}
26... Rce8 {[%clk 0:05:36]} 27. Qe2 {[%clk 0:03:35.9]} 27... Qb8 {[%clk
0:04:44.8]} 28. g5 {[%clk 0:03:21.7]} 28... hxg5 {[%clk 0:04:46.7]} 29. fxg5
{[%clk 0:03:22.1]} 29... Rxe5 {[%clk 0:04:46.1]} 30. Qxe5 {[%clk 0:03:12.8]}
30... Qxe5 {[%clk 0:04:46.1]} 31. Rxe5 {[%clk 0:03:13.8]} 31... Nd7 {[%clk
0:04:30.6]} 32. Re7 {[%clk 0:03:13.5]} 32... Nb6 {[%clk 0:04:19.3]} 33. Rb7
{[%clk 0:03:07]} 33... Nc8 {[%clk 0:04:07.7]} 34. Rc7 {[%clk 0:03:07.3]} 34...
a4 {[%clk 0:03:48.7]} 35. bxa4 {[%clk 0:02:39.5]} 35... Nb6 {[%clk 0:03:48.8]}
36. a5 {[%clk 0:02:40.6]} 36... Nxc4 {[%clk 0:03:46.6]} 37. a6 {[%clk
0:02:41.5]} 37... Nb6 {[%clk 0:03:37.6]} 38. Rxc5 {[%clk 0:02:23.5]} 38... Rd8
{[%clk 0:03:29.8]} 39. a7 {[%clk 0:02:12.1]} 39... d3 {[%clk 0:03:05]} 40. cxd3
{[%clk 0:02:09.2]} 40... Rxd3 {[%clk 0:03:06.9]} 41. Rb5 {[%clk 0:01:31.4]}
41... Ra3 {[%clk 0:03:01.2]} 42. Rxb6 {[%clk 0:01:28.1]} 42... Rxa7 {[%clk
0:02:59.6]} 43. Rb7 {[%clk 0:01:22.8]} 43... Rxa2 {[%clk 0:02:49.1]} 44. Rxf7+
{[%clk 0:01:20.6]} 44... Kh8 {[%clk 0:02:44.2]} 45. Rb7 {[%clk 0:01:19.3]} 45...
Rb2 {[%clk 0:02:35.4]} 46. h4 {[%clk 0:01:11.3]} 46... b3 {[%clk 0:02:35.2]} 47.
Kh2 {[%clk 0:01:07.3]} 47... Rb1 {[%clk 0:02:30.7]} 48. Bd5 {[%clk 0:01:01.4]}
48... b2 {[%clk 0:02:27.9]} 49. Be4 {[%clk 0:00:51.5]} 49... Re1 {[%clk
0:02:18.7]} 50. Bxg6 {[%clk 0:00:52.3]} 1-0

[Event "GrandPrix_29.05"]
[Site "Chess.com"]
[Date "2020.05.29"]
[Round "2"]
[White "rfhfb"]
[Black "econpower"]
[Result "1-0"]
[WhiteElo "2198"]
[BlackElo "1900"]
[TimeControl "600+2"]
[EndTime "9:55:14 PDT"]
[Termination "rfhfb won by resignation"]

1. d4 {[%clk 0:10:00.8]} 1... d6 {[%clk 0:10:00.5]} 2. c4 {[%clk 0:10:01.7]}
2... g6 {[%clk 0:10:01.3]} 3. Nf3 {[%clk 0:09:54.5]} 3... Bg7 {[%clk 0:09:55.8]}
4. g3 {[%clk 0:09:33.8]} 4... Nd7 {[%clk 0:09:03.9]} 5. Bg2 {[%clk 0:09:30.9]}
5... e5 {[%clk 0:09:03.2]} 6. Nc3 {[%clk 0:09:25.9]} 6... Ne7 {[%clk 0:09:03.6]}
7. O-O {[%clk 0:09:19.2]} 7... O-O {[%clk 0:09:03.8]} 8. b3 {[%clk 0:09:02.6]}
8... exd4 {[%clk 0:09:04.4]} 9. Nd5 {[%clk 0:08:02.2]} 9... c5 {[%clk
0:08:56.2]} 10. Bg5 {[%clk 0:07:53.5]} 10... f6 {[%clk 0:08:56.8]} 11. Nxe7+
{[%clk 0:07:17.4]} 11... Qxe7 {[%clk 0:08:57.1]} 12. Bf4 {[%clk 0:07:19.3]}
12... Ne5 {[%clk 0:08:32.3]} 13. e3 {[%clk 0:06:51.1]} 13... g5 {[%clk
0:07:32.2]} 14. Bxe5 {[%clk 0:06:50.1]} 14... dxe5 {[%clk 0:07:21.2]} 15. Nd2
{[%clk 0:06:06.8]} 15... Kh8 {[%clk 0:07:03.2]} 16. Bd5 {[%clk 0:05:57.5]} 16...
f5 {[%clk 0:06:49.1]} 17. e4 {[%clk 0:04:58.5]} 17... f4 {[%clk 0:06:37.9]} 18.
f3 {[%clk 0:03:49.2]} 18... g4 {[%clk 0:03:42.3]} 19. fxg4 {[%clk 0:03:12.6]}
19... fxg3 {[%clk 0:03:43.2]} 20. Rxf8+ {[%clk 0:02:55.3]} 20... Qxf8 {[%clk
0:03:43.5]} 21. hxg3 {[%clk 0:02:55.2]} 21... Bh6 {[%clk 0:03:35.5]} 22. g5
{[%clk 0:02:17.2]} 22... Bxg5 {[%clk 0:03:35.4]} 23. Qh5 {[%clk 0:02:18.1]}
23... Be3+ {[%clk 0:03:20.6]} 24. Kg2 {[%clk 0:01:48.2]} 24... Qf2+ {[%clk
0:02:45.8]} 25. Kh1 {[%clk 0:01:46.3]} 25... Qf6 {[%clk 0:02:46.9]} 26. Qe8+
{[%clk 0:00:49]} 26... Kg7 {[%clk 0:02:46.7]} 27. Qg8+ {[%clk 0:00:49.8]} 27...
Kh6 {[%clk 0:02:47.6]} 28. Rf1 {[%clk 0:00:51.4]} 28... Bf2 {[%clk 0:02:29.2]}
29. Kh2 {[%clk 0:00:19.3]} 29... a5 {[%clk 0:02:02.8]} 30. Rh1 {[%clk
0:00:17.1]} 30... Bh3 {[%clk 0:01:33.4]} 31. Qxa8 {[%clk 0:00:16.7]} 31... Qg5
{[%clk 0:01:34.3]} 32. Qg8 {[%clk 0:00:07.9]} 32... Qh5 {[%clk 0:01:15]} 33.
Qf8+ {[%clk 0:00:08]} 33... Kg5 {[%clk 0:01:15.2]} 34. Qg7+ {[%clk 0:00:07.8]}
1-0

[Event "GrandPrix_29.05"]
[Site "Chess.com"]
[Date "2020.05.29"]
[Round "2"]
[White "kayrakamer"]
[Black "Borisss85"]
[Result "0-1"]
[WhiteElo "2100"]
[BlackElo "2031"]
[TimeControl "600+2"]
[EndTime "9:55:21 PDT"]
[Termination "Borisss85 won on time"]

1. e4 {[%clk 0:10:00.2]} 1... c5 {[%clk 0:09:59]} 2. Nf3 {[%clk 0:10:01.2]} 2...
e6 {[%clk 0:09:56.5]} 3. d4 {[%clk 0:10:02.6]} 3... cxd4 {[%clk 0:09:54.8]} 4.
Nxd4 {[%clk 0:10:04.5]} 4... a6 {[%clk 0:09:55.6]} 5. Nc3 {[%clk 0:10:05.7]}
5... Qc7 {[%clk 0:09:54.3]} 6. Bd3 {[%clk 0:10:04.6]} 6... Nc6 {[%clk
0:09:52.4]} 7. Nxc6 {[%clk 0:10:03.5]} 7... dxc6 {[%clk 0:09:52.2]} 8. O-O
{[%clk 0:10:04.3]} 8... e5 {[%clk 0:09:50.9]} 9. f4 {[%clk 0:10:04.4]} 9... Nf6
{[%clk 0:09:51.4]} 10. Kh1 {[%clk 0:09:43.4]} 10... Bd6 {[%clk 0:09:33.7]} 11.
f5 {[%clk 0:09:39.1]} 11... b5 {[%clk 0:09:33.9]} 12. Bg5 {[%clk 0:09:38.6]}
12... Bb7 {[%clk 0:09:32.9]} 13. Bxf6 {[%clk 0:09:36.8]} 13... gxf6 {[%clk
0:09:33.2]} 14. Qh5 {[%clk 0:09:38.7]} 14... Ke7 {[%clk 0:09:30.9]} 15. a4
{[%clk 0:09:36.4]} 15... Rag8 {[%clk 0:09:24.9]} 16. axb5 {[%clk 0:09:28.3]}
16... axb5 {[%clk 0:09:20.3]} 17. Rad1 {[%clk 0:09:19.2]} 17... Rg5 {[%clk
0:09:17.8]} 18. Qh6 {[%clk 0:09:19.6]} 18... Rhg8 {[%clk 0:09:14.6]} 19. Rd2
{[%clk 0:09:20.3]} 19... b4 {[%clk 0:08:52.8]} 20. Ne2 {[%clk 0:09:19.4]} 20...
Rxg2 {[%clk 0:08:51.7]} 21. Ng3 {[%clk 0:08:49.5]} 21... Rxd2 {[%clk 0:08:44.6]}
22. Qxd2 {[%clk 0:08:51.4]} 22... Qb6 {[%clk 0:08:31.4]} 23. b3 {[%clk
0:08:04.8]} 23... Rg5 {[%clk 0:08:23.2]} 24. Kg2 {[%clk 0:07:27.8]} 24... Bc5
{[%clk 0:08:02.5]} 25. Rf3 {[%clk 0:07:18.1]} 25... Bd4 {[%clk 0:07:53.7]} 26.
h4 {[%clk 0:07:17.1]} 26... Rg4 {[%clk 0:07:50.8]} 27. Kh3 {[%clk 0:07:16.9]}
27... Rg8 {[%clk 0:07:45.1]} 28. Qh6 {[%clk 0:07:15.5]} 28... c5 {[%clk
0:05:29.5]} 29. Qxh7 {[%clk 0:07:10.7]} 29... Qd8 {[%clk 0:05:20.8]} 30. Qh6
{[%clk 0:06:25]} 30... Rh8 {[%clk 0:05:16.4]} 31. Qc1 {[%clk 0:06:22.5]} 31...
Qg8 {[%clk 0:05:11.4]} 32. Qd2 {[%clk 0:05:19]} 32... Qh7 {[%clk 0:05:06.2]} 33.
h5 {[%clk 0:05:13.8]} 33... Rg8 {[%clk 0:05:02.7]} 34. Qe2 {[%clk 0:04:52.8]}
34... Qg7 {[%clk 0:04:55]} 35. Kg2 {[%clk 0:04:12.2]} 35... Qg5 {[%clk
0:04:45.9]} 36. Ba6 {[%clk 0:03:59.1]} 36... Bc6 {[%clk 0:04:35.9]} 37. Bb5
{[%clk 0:03:55.2]} 37... Ba8 {[%clk 0:04:34.4]} 38. Kh1 {[%clk 0:02:59.6]} 38...
Qg4 {[%clk 0:03:48.9]} 39. Bd3 {[%clk 0:02:39.5]} 39... Rg5 {[%clk 0:03:28.1]}
40. Qg2 {[%clk 0:02:11.4]} 40... Rg8 {[%clk 0:02:52.2]} 41. Kh2 {[%clk
0:01:07.8]} 41... Bb7 {[%clk 0:02:31.5]} 42. Rf1 {[%clk 0:00:58.3]} 42... Be3
{[%clk 0:02:24.3]} 43. Qh3 {[%clk 0:00:53.7]} 43... Qg5 {[%clk 0:02:12]} 44. Ne2
{[%clk 0:00:53.6]} 44... Rh8 {[%clk 0:02:06.9]} 0-1

[Event "GrandPrix_29.05"]
[Site "Chess.com"]
[Date "2020.05.29"]
[Round "2"]
[White "DariaVoit"]
[Black "BogdanBelyakov89"]
[Result "1-0"]
[WhiteElo "2317"]
[BlackElo "2113"]
[TimeControl "600+2"]
[EndTime "9:55:31 PDT"]
[Termination "DariaVoit won by resignation"]

1. d4 {[%clk 0:10:01.9]} 1... Nf6 {[%clk 0:10:00.3]} 2. Nf3 {[%clk 0:10:00.3]}
2... g6 {[%clk 0:10:00.6]} 3. c4 {[%clk 0:09:59.9]} 3... Bg7 {[%clk 0:10:00.6]}
4. Nc3 {[%clk 0:10:00.9]} 4... O-O {[%clk 0:10:01.1]} 5. Bg5 {[%clk 0:10:01.2]}
5... c5 {[%clk 0:10:00.8]} 6. d5 {[%clk 0:09:59]} 6... h6 {[%clk 0:09:34.2]} 7.
Bh4 {[%clk 0:09:58.8]} 7... d6 {[%clk 0:09:31.1]} 8. e3 {[%clk 0:09:54.6]} 8...
Na6 {[%clk 0:08:58.4]} 9. Nd2 {[%clk 0:09:27.3]} 9... Nc7 {[%clk 0:08:53]} 10.
a4 {[%clk 0:09:24.7]} 10... b6 {[%clk 0:08:39.6]} 11. e4 {[%clk 0:08:35.8]}
11... Nh5 {[%clk 0:07:55.5]} 12. g4 {[%clk 0:07:10.4]} 12... Nf4 {[%clk
0:07:41.6]} 13. Qf3 {[%clk 0:07:08]} 13... g5 {[%clk 0:07:33.8]} 14. Bg3 {[%clk
0:07:08.8]} 14... e5 {[%clk 0:07:25.8]} 15. Nd1 {[%clk 0:06:38]} 15... Na6
{[%clk 0:06:56.5]} 16. Ne3 {[%clk 0:06:30.7]} 16... Nb4 {[%clk 0:06:57.2]} 17.
h4 {[%clk 0:06:30]} 17... gxh4 {[%clk 0:06:06.3]} 18. Bxf4 {[%clk 0:05:47]}
18... exf4 {[%clk 0:06:01.2]} 19. Qxf4 {[%clk 0:05:48.9]} 19... Qg5 {[%clk
0:05:36.4]} 20. Qh2 {[%clk 0:05:31.6]} 20... Bxb2 {[%clk 0:04:36.9]} 21. Rb1
{[%clk 0:05:29.4]} 21... Be5 {[%clk 0:03:56.7]} 22. Qxh4 {[%clk 0:05:25.5]}
22... Qxh4 {[%clk 0:03:57]} 23. Rxh4 {[%clk 0:05:27.4]} 23... Bf4 {[%clk
0:03:55.8]} 24. Nf5 {[%clk 0:05:16.5]} 24... Bg5 {[%clk 0:01:36.4]} 25. Nxh6+
{[%clk 0:04:05.3]} 25... Kg7 {[%clk 0:01:35.9]} 26. Rh5 {[%clk 0:04:06.8]} 26...
Bxh6 {[%clk 0:01:26.1]} 27. g5 {[%clk 0:04:07.9]} 27... Bxg5 {[%clk 0:01:20.5]}
28. Rxg5+ {[%clk 0:04:08.3]} 28... Kf6 {[%clk 0:01:22]} 29. f4 {[%clk
0:04:04.2]} 29... Bd7 {[%clk 0:01:17.1]} 30. e5+ {[%clk 0:03:52.9]} 30... Ke7
{[%clk 0:00:44.5]} 31. Ne4 {[%clk 0:03:48.7]} 31... Bxa4 {[%clk 0:00:45.1]} 32.
Nxd6 {[%clk 0:03:39]} 32... Bc2 {[%clk 0:00:31.5]} 33. Ra1 {[%clk 0:03:12.1]}
33... a5 {[%clk 0:00:30.6]} 34. f5 {[%clk 0:02:59.5]} 34... Rg8 {[%clk 0:00:22]}
35. f6+ {[%clk 0:02:57.8]} 35... Kd7 {[%clk 0:00:22.3]} 36. Bh3+ {[%clk
0:02:41.1]} 36... Kc7 {[%clk 0:00:23]} 37. Nxf7 {[%clk 0:02:38.6]} 37... Bg6
{[%clk 0:00:15]} 38. Nh6 {[%clk 0:02:16]} 38... Nc2+ {[%clk 0:00:11.4]} 39. Kd2
{[%clk 0:02:05.2]} 39... Nxa1 {[%clk 0:00:13.3]} 40. Nxg8 {[%clk 0:02:05.7]}
40... Rxg8 {[%clk 0:00:13.1]} 41. Be6 {[%clk 0:02:06.9]} 41... Rf8 {[%clk
0:00:09.3]} 42. Rxg6 {[%clk 0:02:07.4]} 42... Nb3+ {[%clk 0:00:09.8]} 43. Kc3
{[%clk 0:02:08.5]} 43... Nd4 {[%clk 0:00:11.7]} 44. Rg7+ {[%clk 0:02:04.7]}
44... Kb8 {[%clk 0:00:12.8]} 45. f7 {[%clk 0:01:53.5]} 45... Kc7 {[%clk
0:00:13.1]} 46. Rg8 {[%clk 0:01:52.3]} 1-0